fUSD/lending_fUSD_20241125
["ID","MTS","AMOUNT","RATE_DAILY","PERIOD"]
[343233621,1732512640354,-500.0,0.00044098,30]
[343233622,1732512640363,-500.0,0.00044098,30]
[343233623,1732512640373,-500.0,0.00044098,30]
[343233624,1732512640382,-11931.22152938,0.00044098,2]
[343233630,1732512643711,-500.0,0.00044097,30]
[343233631,1732512643721,-11079.16834058,0.00044098,2]
[343233632,1732512643733,-1300.83032305,0.00044098,2]
[343233633,1732512643744,-9694.35788781,0.00044098,2]
[343233634,1732512643824,-1622.40532691,0.00044098,2]
[343233635,1732512643836,-3297.76472203,0.00044098,2]
[343233636,1732512643883,-1000.00587437,0.00044098,2]
[343233637,1732512644060,-639.75594044,0.00044098,2]
[343233638,1732512644124,-3121.68658125,0.00044098,2]
[343233639,1732512644135,-8977.7572176,0.00044098,2]
[343233647,1732512646249,-3810.32456387,0.00044098,2]
[343233648,1732512646431,-500.0,0.00044098,30]
[343233649,1732512646443,-344.9,0.00044098,2]
[343233650,1732512646511,-4739.06100652,0.00044098,2]
[343233651,1732512646556,-9978.05943315,0.00044098,2]
[343233652,1732512677036,1001.0,0.000402,120]
[343233653,1732512677291,500.0,0.000402,120]
[343233658,1732513570164,232.26,0.000401,30]
[343233672,1732513607370,28110.56,0.0004,10]
[343233673,1732513607394,1283.44,0.0004,10]
[343233675,1732513665871,150.0,0.00039773,7]
[343233707,1732513831522,-181.43203328,0.00041096,2]
[343233708,1732513831532,-431.54,0.00041194,2]
[343233709,1732513831544,-250.0,0.00043071,120]
[343233710,1732513831553,-1546.49,0.00043075,2]
[343233711,1732513831563,-1000.0,0.00043089,2]
[343233712,1732513831572,-155.37,0.00043317,120]
[343233713,1732513831581,-431.54,0.00043458,2]
[343233714,1732513831590,-656.4774175,0.00043562,120]
[343233715,1732513831599,-620.60711,0.0004366,19]
[343233716,1732513831608,-10000.0,0.000439,120]
[343233717,1732513831618,-462.94161651,0.00043996,15]
[343233718,1732513831628,-2944.27,0.00043997,2]
[343233719,1732513831637,-4826.1,0.00043997,2]
[343233720,1732513831647,-310.6271,0.00043998,2]
[343233721,1732513831656,-338.979,0.00043999,69]
[343233722,1732513831665,-4664.85802246,0.00043999,2]
[343233723,1732513831675,-250.0,0.00044,2]
[343233724,1732513831685,-250.0,0.00044,30]
[343233725,1732513831694,-32110.0754061,0.00044,2]
[343233726,1732513831706,-7197.82021777,0.00044,2]
[343233727,1732513831719,-22284.34632492,0.00044,2]
[343233728,1732513831729,-5916.64634566,0.00044095,14]
[343233729,1732513831738,-500.0,0.00044095,30]
[343233730,1732513831748,-500.0,0.00044096,30]
[343233731,1732513831757,-500.0,0.00044096,30]
[343233732,1732513831767,-500.0,0.00044096,30]
[343233733,1732513831776,-500.0,0.00044096,30]
[343233734,1732513831786,-500.0,0.00044096,30]
[343233735,1732513831795,-500.0,0.00044096,30]
[343233736,1732513831804,-500.0,0.00044096,30]
[343233737,1732513831815,-1157.3,0.00044096,30]
[343233738,1732513831824,-500.0,0.00044096,30]
[343233739,1732513831834,-500.0,0.00044096,21]
[343233740,1732513831843,-221.44939899,0.00044096,30]
[343233741,1732513831853,-500.0,0.00044096,30]
[343233742,1732513831863,-500.0,0.00044096,30]
[343233743,1732513831873,-158.931534,0.00044096,30]
[343233744,1732513831882,-3538.2,0.00044096,30]
[343233745,1732513831893,-9666.9,0.00044096,30]
[343233746,1732513831903,-4240.81,0.00044096,30]
[343233747,1732513831913,-9226.32,0.00044096,30]
[343233748,1732513831923,-2089.94,0.00044096,120]
[343233749,1732513831933,-500.0,0.00044096,30]
[343233750,1732513831943,-4548.13,0.00044096,30]
[343233751,1732513831953,-629.84,0.00044096,30]
[343233752,1732513831964,-702.98,0.00044096,30]
[343233753,1732513831974,-500.0,0.00044096,30]
[343233754,1732513831983,-693.44,0.00044096,30]
[343233755,1732513831995,-4727.77,0.00044096,30]
[343233756,1732513832004,-5289.89,0.00044096,30]
[343233757,1732513832014,-500.0,0.00044096,30]
[343233758,1732513832024,-500.0,0.00044096,30]
[343233759,1732513832033,-500.0,0.00044096,30]
[343233760,1732513832043,-5960.28,0.00044096,30]
[343233761,1732513832053,-500.0,0.00044096,30]
[343233762,1732513832062,-549.39,0.00044096,30]
[343233763,1732513832072,-3607.47,0.00044096,30]
[343233764,1732513832082,-500.0,0.00044096,30]
[343233765,1732513832091,-500.0,0.00044096,30]
[343233766,1732513832101,-4992.38,0.00044096,30]
[343233767,1732513832110,-500.0,0.00044096,30]
[343233768,1732513832120,-500.0,0.00044096,30]
[343233769,1732513832129,-500.0,0.00044096,30]
[343233770,1732513832138,-500.0,0.00044096,30]
[343233771,1732513832147,-25781.66,0.00044096,30]
[343233772,1732513832157,-500.0,0.00044096,30]
[343233773,1732513832168,-500.0,0.00044096,30]
[343233774,1732513832177,-500.0,0.00044096,30]
[343233775,1732513832187,-3850.10645417,0.00044096,30]
[343233776,1732513832200,-980.51,0.00044096,30]
[343233777,1732513832215,-758.65354583,0.00044096,30]
[343233778,1732513832224,-288.22844599,0.00044096,30]
[343233779,1732513832244,-853.2405007,0.00044096,30]
[343233780,1732513832256,-3166.05105331,0.00044096,30]
[343233781,1732513832265,-2295.66,0.00044096,30]
[343233782,1732513832274,-280.55801701,0.00044096,30]
[343233783,1732513832294,-219.44198299,0.00044096,30]
[343233784,1732513832303,-3486.34485088,0.00044096,30]
[343233791,1732513837567,-3382.44514912,0.00044096,30]
[343233792,1732513837576,-158.58616631,0.00044096,30]
[343233793,1732513837625,-4157.69383369,0.00044096,30]
[343233794,1732513837635,-1091.79,0.00044096,30]
[343233795,1732513837644,-7408.66,0.00044096,30]
[343233796,1732513837654,-500.0,0.00044096,30]
[343233797,1732513837664,-500.0,0.00044096,30]
[343233798,1732513837673,-151.0,0.00044096,14]
[343233799,1732513837683,-500.0,0.00044096,30]
[343233800,1732513837692,-500.0,0.00044096,30]
[343233801,1732513837701,-17008.85,0.00044096,30]
[343233802,1732513837711,-500.0,0.00044096,30]
[343233803,1732513837723,-4900.41,0.00044096,30]
[343233804,1732513837732,-25257.87624475,0.00044097,12]
[343233805,1732513837936,-2056.74711618,0.00044097,12]
[343233806,1732513837955,-33140.9026676,0.00044097,12]
[343233813,1732513839522,-500.0,0.00044095,30]
[343233814,1732513839532,-20630.63206619,0.00044097,12]
[343233815,1732513842780,-500.0,0.00044096,30]
[343233816,1732513842790,-529.25626698,0.00044096,30]
[343233818,1732513842798,-500.0,0.00044096,30]
[343233819,1732513842807,-6084.93004094,0.00044097,12]
[343233821,1732513842819,-904.29919878,0.00044097,12]
[343233843,1732513843012,-3153.35467953,0.00044097,12]
[343233855,1732513843183,-5981.47363243,0.00044097,12]
[343233884,1732513845399,-500.0,0.00044096,30]
[343233885,1732513845408,-1745.16913,0.00044097,12]
[343233886,1732513845458,-324.04036728,0.00044097,12]
[343233887,1732513845471,-60665.18966761,0.00044097,12]
[343233888,1732513845480,-3992.40357104,0.00044097,22]
[343233889,1732513845489,-500.0,0.00044097,30]
[343233890,1732513845498,-508.03662475,0.00044097,30]
[343233891,1732513845511,-500.0,0.00044097,30]
[343233892,1732513845520,-500.0,0.00044097,30]
[343233893,1732513845530,-292.72502621,0.00044097,30]
[343233894,1732513845539,-500.0,0.00044097,30]
[343233895,1732513845549,-500.0,0.00044097,30]
[343233896,1732513845559,-500.0,0.00044097,30]
[343233897,1732513845569,-500.0,0.00044097,30]
[343233898,1732513845579,-500.0,0.00044097,30]
[343233899,1732513845589,-500.0,0.00044097,30]
[343233900,1732513845599,-500.0,0.00044097,30]
[343233901,1732513845609,-165.04678991,0.00044097,30]
[343233902,1732513845619,-500.0,0.00044097,30]
[343233903,1732513845628,-532.87623009,0.00044097,30]
[343233904,1732513845638,-500.0,0.00044097,30]
[343233905,1732513845647,-500.0,0.00044097,30]
[343233906,1732513845657,-528.36132815,0.00044097,30]
[343233907,1732513845666,-500.0,0.00044097,30]
[343233908,1732513845675,-500.0,0.00044097,30]
[343233909,1732513845685,-500.0,0.00044097,30]
[343233910,1732513845695,-500.0,0.00044097,30]
[343233911,1732513845704,-645.7899874,0.00044097,30]
[343233912,1732513845714,-523.81386435,0.00044097,30]
[343233913,1732513845724,-500.0,0.00044097,30]
[343233914,1732513845734,-500.0,0.00044097,30]
[343233915,1732513845744,-500.0,0.00044097,30]
[343233916,1732513845754,-397.25522093,0.00044097,30]
[343233917,1732513845763,-567.53267332,0.00044097,30]
[343233918,1732513845772,-526.41445053,0.00044097,30]
[343233919,1732513845781,-512.88587153,0.00044097,30]
[343233920,1732513845791,-500.0,0.00044097,30]
[343233921,1732513845801,-515.84356515,0.00044097,30]
[343233922,1732513845811,-441.84213249,0.00044097,30]
[343233923,1732513845820,-500.0,0.00044097,30]
[343233924,1732513845830,-500.0,0.00044097,30]
[343233925,1732513845839,-500.0,0.00044097,30]
[343233926,1732513845849,-500.0,0.00044097,30]
[343233927,1732513845859,-500.0,0.00044097,30]
[343233928,1732513845868,-500.0,0.00044097,30]
[343233929,1732513845878,-500.0,0.00044097,30]
[343233930,1732513845887,-500.0,0.00044097,30]
[343233931,1732513845896,-500.0,0.00044097,30]
[343233932,1732513845907,-607.25,0.00044097,30]
[343233933,1732513845917,-500.0,0.00044097,30]
[343233934,1732513845927,-500.0,0.00044097,30]
[343233935,1732513845937,-500.50900697,0.00044097,30]
[343233936,1732513845946,-500.0,0.00044097,30]
[343233937,1732513845956,-508.29154368,0.00044097,30]
[343233938,1732513845965,-500.0,0.00044097,30]
[343233939,1732513845977,-500.0,0.00044097,30]
[343233940,1732513845986,-509.35430473,0.00044097,30]
[343233941,1732513845995,-500.0,0.00044097,30]
[343233942,1732513846004,-500.0,0.00044097,30]
[343233943,1732513846014,-517.8537127,0.00044097,30]
[343233944,1732513846023,-500.0,0.00044097,30]
[343233945,1732513846032,-500.0,0.00044097,30]
[343233946,1732513846042,-177.87416966,0.00044097,30]
[343233947,1732513846051,-500.0,0.00044097,30]
[343233948,1732513846061,-500.0,0.00044097,30]
[343233949,1732513846070,-225.89752354,0.00044097,30]
[343233950,1732513846080,-500.0,0.00044097,30]
[343233951,1732513846089,-500.0,0.00044097,30]
[343233952,1732513846098,-259.53104556,0.00044097,30]
[343233953,1732513846107,-630.87654219,0.00044097,30]
[343233954,1732513846116,-500.0,0.00044097,30]
[343233955,1732513846126,-500.0,0.00044097,30]
[343233956,1732513846135,-635.92013938,0.00044097,30]
[343233957,1732513846145,-500.0,0.00044097,30]
[343233958,1732513846154,-500.0,0.00044097,30]
[343233959,1732513846164,-500.0,0.00044097,30]
[343233960,1732513846174,-500.0,0.00044097,30]
[343233961,1732513846183,-500.0,0.00044097,30]
[343233962,1732513846193,-500.0,0.00044097,30]
[343233963,1732513846202,-500.0,0.00044097,30]
[343233964,1732513846211,-500.0,0.00044097,30]
[343233965,1732513846221,-273.28525655,0.00044097,30]
[343233966,1732513846231,-500.0,0.00044097,30]
[343233967,1732513846240,-156.122571,0.00044097,14]
[343233968,1732513846249,-516.87445704,0.00044097,30]
[343233969,1732513846258,-226.93085796,0.00044097,30]
[343233970,1732513846267,-221.15463923,0.00044097,30]
[343233971,1732513846277,-500.0,0.00044097,30]
[343233972,1732513846287,-500.0,0.00044097,30]
[343233973,1732513846296,-500.0,0.00044097,30]
[343233974,1732513846306,-523.31238187,0.00044097,30]
[343233975,1732513846315,-500.0,0.00044097,30]
[343233976,1732513846325,-219.57498238,0.00044097,30]
[343233977,1732513846334,-500.0,0.00044097,30]
[343233978,1732513846343,-500.0,0.00044097,30]
[343233979,1732513846353,-500.0,0.00044097,30]
[343233980,1732513846363,-500.0,0.00044097,30]
[343233981,1732513846372,-500.0,0.00044097,30]
[343233982,1732513846382,-500.0,0.00044097,7]
[343233983,1732513846391,-500.0,0.00044097,30]
[343233984,1732513846401,-500.0,0.00044097,30]
[343233985,1732513846410,-500.0,0.00044097,30]
[343233986,1732513846419,-500.0,0.00044097,30]
[343233987,1732513846429,-571.42154178,0.00044097,30]
[343233988,1732513846438,-1527.01,0.00044097,30]
[343233989,1732513846447,-500.0,0.00044097,30]
[343233990,1732513846457,-500.0,0.00044097,30]
[343233991,1732513846467,-500.0,0.00044097,30]
[343233992,1732513846479,-500.0,0.00044097,30]
[343233993,1732513846489,-500.0,0.00044097,30]
[343233994,1732513846502,-500.0,0.00044097,30]
[343233995,1732513846511,-500.0,0.00044097,30]
[343233996,1732513846520,-510.31191952,0.00044097,30]
[343233997,1732513846530,-339.41753304,0.00044097,30]
[343233998,1732513846539,-500.0,0.00044097,30]
[343233999,1732513846549,-500.0,0.00044097,30]
[343234000,1732513846558,-500.0,0.00044097,30]
[343234001,1732513846567,-500.0,0.00044097,30]
[343234002,1732513846577,-500.0,0.00044097,30]
[343234003,1732513846588,-500.0,0.00044097,30]
[343234004,1732513846597,-500.0,0.00044097,30]
[343234005,1732513846606,-500.0,0.00044097,30]
[343234006,1732513846616,-500.0,0.00044097,30]
[343234007,1732513846625,-500.0,0.00044097,30]
[343234008,1732513846634,-381.5856562,0.00044097,30]
[343234009,1732513846643,-246.80361466,0.00044097,30]
[343234010,1732513846653,-263.94690551,0.00044097,30]
[343234011,1732513846662,-500.0,0.00044097,30]
[343234012,1732513846671,-500.0,0.00044097,30]
[343234013,1732513846680,-500.0,0.00044097,30]
[343234014,1732513846690,-500.0,0.00044097,30]
[343234015,1732513846699,-552.67296955,0.00044097,30]
[343234016,1732513846708,-500.0,0.00044097,30]
[343234017,1732513846718,-500.0,0.00044097,30]
[343234018,1732513846729,-500.0,0.00044097,30]
[343234019,1732513846738,-500.0,0.00044097,30]
[343234020,1732513846747,-220.91497413,0.00044097,30]
[343234021,1732513846756,-500.0,0.00044097,30]
[343234022,1732513846766,-500.0,0.00044097,30]
[343234023,1732513846775,-500.0,0.00044097,30]
[343234024,1732513846784,-500.0,0.00044097,30]
[343234025,1732513846794,-500.0,0.00044097,30]
[343234026,1732513846804,-500.0,0.00044097,30]
[343234027,1732513846813,-500.0,0.00044097,30]
[343234028,1732513846823,-500.0,0.00044097,30]
[343234029,1732513846832,-500.0,0.00044097,30]
[343234030,1732513846842,-500.0,0.00044097,7]
[343234031,1732513846851,-500.0,0.00044097,30]
[343234032,1732513846860,-581.118327,0.00044097,30]
[343234033,1732513846870,-500.0,0.00044097,30]
[343234034,1732513846880,-500.0,0.00044097,30]
[343234035,1732513846889,-490.99788151,0.00044097,30]
[343234036,1732513846898,-500.0,0.00044097,30]
[343234037,1732513846908,-500.0,0.00044097,30]
[343234038,1732513846918,-500.0,0.00044097,30]
[343234039,1732513846927,-521.4,0.00044097,30]
[343234040,1732513846936,-500.0,0.00044097,30]
[343234041,1732513846945,-168.0,0.00044097,30]
[343234042,1732513846954,-500.0,0.00044097,30]
[343234043,1732513846964,-500.0,0.00044097,30]
[343234044,1732513846973,-500.0,0.00044097,30]
[343234045,1732513846983,-500.0,0.00044097,30]
[343234046,1732513846992,-500.0,0.00044097,30]
[343234047,1732513847001,-500.0,0.00044097,30]
[343234048,1732513847010,-500.0,0.00044097,30]
[343234049,1732513847020,-500.0,0.00044097,30]
[343234050,1732513847029,-500.0,0.00044097,30]
[343234051,1732513847039,-500.0,0.00044097,30]
[343234052,1732513847049,-657.79,0.00044097,30]
[343234053,1732513847058,-500.0,0.00044097,30]
[343234054,1732513847067,-799.55,0.00044097,30]
[343234055,1732513847077,-500.0,0.00044097,30]
[343234056,1732513847086,-500.0,0.00044097,30]
[343234057,1732513847095,-504.96,0.00044097,30]
[343234058,1732513847104,-500.0,0.00044097,30]
[343234059,1732513847114,-500.0,0.00044097,30]
[343234060,1732513847123,-500.0,0.00044097,30]
[343234061,1732513847132,-500.0,0.00044097,30]
[343234062,1732513847141,-610.33759076,0.00044097,30]
[343234063,1732513847151,-500.0,0.00044097,30]
[343234064,1732513847160,-500.0,0.00044097,30]
[343234065,1732513847169,-190.2458436,0.00044097,30]
[343234066,1732513847179,-500.0,0.00044097,30]
[343234067,1732513847187,-409.70571219,0.00044097,30]
[343234068,1732513847196,-500.0,0.00044097,30]
[343234069,1732513847205,-500.0,0.00044097,30]
[343234070,1732513847214,-500.0,0.00044097,30]
[343234071,1732513847225,-500.0,0.00044097,30]
[343234072,1732513847235,-500.0,0.00044097,30]
[343234073,1732513847244,-500.0,0.00044097,30]
[343234074,1732513847253,-386.25504699,0.00044097,30]
[343234075,1732513847263,-638.77582319,0.00044097,30]
[343234076,1732513847272,-395.51494559,0.00044097,30]
[343234077,1732513847281,-500.0,0.00044097,30]
[343234078,1732513847290,-500.0,0.00044097,30]
[343234079,1732513847300,-500.0,0.00044097,30]
[343234080,1732513847309,-500.0,0.00044097,30]
[343234081,1732513847318,-500.0,0.00044097,30]
[343234082,1732513847327,-500.0,0.00044097,30]
[343234083,1732513847336,-500.0,0.00044097,30]
[343234084,1732513847345,-838.38,0.00044097,30]
[343234085,1732513847355,-500.0,0.00044097,30]
[343234086,1732513847364,-500.0,0.00044097,30]
[343234087,1732513847373,-317.85430786,0.00044097,30]
[343234088,1732513847382,-500.0,0.00044097,30]
[343234089,1732513847391,-500.0,0.00044097,30]
[343234090,1732513847399,-500.0,0.00044097,30]
[343234091,1732513847408,-500.0,0.00044097,30]
[343234092,1732513847417,-500.0,0.00044097,30]
[343234093,1732513847427,-500.0,0.00044097,30]
[343234094,1732513847436,-395.02463058,0.00044097,30]
[343234095,1732513847445,-500.0,0.00044097,30]
[343234096,1732513847454,-152.461228,0.00044097,14]
[343234097,1732513847463,-547.6155333,0.00044097,30]
[343234098,1732513847473,-500.0,0.00044097,30]
[343234099,1732513847482,-500.0,0.00044097,30]
[343234100,1732513847493,-500.0,0.00044097,30]
[343234101,1732513847503,-500.0,0.00044097,7]
[343234102,1732513847513,-491.38608588,0.00044097,30]
[343234103,1732513847522,-500.0,0.00044097,30]
[343234104,1732513847531,-415.82204856,0.00044097,30]
[343234105,1732513847540,-151.0,0.00044097,14]
[343234106,1732513847549,-151.0,0.00044097,14]
[343234107,1732513847559,-151.0,0.00044097,14]
[343234108,1732513847567,-151.0,0.00044097,14]
[343234109,1732513847578,-151.0,0.00044097,14]
[343234110,1732513847588,-500.0,0.00044097,30]
[343234111,1732513847597,-151.0,0.00044097,14]
[343234112,1732513847607,-500.0,0.00044097,30]
[343234113,1732513847616,-151.0,0.00044097,14]
[343234114,1732513847625,-282.23760682,0.00044097,30]
[343234115,1732513847634,-500.0,0.00044097,30]
[343234116,1732513847643,-500.0,0.00044097,30]
[343234117,1732513847652,-500.0,0.00044097,30]
[343234118,1732513847661,-500.41004783,0.00044097,30]
[343234119,1732513847671,-151.0,0.00044097,14]
[343234120,1732513847680,-151.0,0.00044097,14]
[343234121,1732513847691,-500.0,0.00044097,30]
[343234122,1732513847700,-151.0,0.00044097,14]
[343234123,1732513847709,-151.0,0.00044097,14]
[343234124,1732513847719,-1000.0,0.00044097,30]
[343234125,1732513847730,-500.0,0.00044097,30]
[343234126,1732513847740,-509.59794118,0.00044097,30]
[343234127,1732513847749,-546.70309624,0.00044097,30]
[343234128,1732513847759,-500.0,0.00044097,30]
[343234129,1732513847768,-500.0,0.00044097,30]
[343234130,1732513847778,-238.205014,0.00044097,14]
[343234131,1732513847790,-238.205014,0.00044097,14]
[343234132,1732513847800,-238.205014,0.00044097,14]
[343234133,1732513847809,-238.205014,0.00044097,14]
[343234134,1732513847819,-238.205014,0.00044097,14]
[343234135,1732513847828,-500.0,0.00044097,30]
[343234136,1732513847837,-238.205014,0.00044097,14]
[343234137,1732513847846,-238.205014,0.00044097,14]
[343234138,1732513847856,-238.205014,0.00044097,14]
[343234139,1732513847865,-238.205014,0.00044097,14]
[343234140,1732513847875,-238.205014,0.00044097,14]
[343234141,1732513847885,-1000.0,0.00044097,30]
[343234142,1732513847894,-500.0,0.00044097,30]
[343234143,1732513847904,-500.0,0.00044097,30]
[343234144,1732513847913,-500.0,0.00044097,30]
[343234145,1732513847923,-313.5537238,0.00044097,30]
[343234146,1732513847938,-500.0,0.00044097,30]
[343234147,1732513847947,-500.0,0.00044097,30]
[343234148,1732513847958,-270.55,0.00044097,30]
[343234149,1732513847969,-500.0,0.00044097,30]
[343234150,1732513847982,-500.0,0.00044097,30]
[343234151,1732513847991,-500.0,0.00044097,30]
[343234152,1732513848001,-500.0,0.00044097,30]
[343234153,1732513848009,-369.26766331,0.00044097,30]
[343234154,1732513848018,-6193.3,0.00044097,30]
[343234155,1732513848027,-500.0,0.00044097,30]
[343234156,1732513848038,-617.72256645,0.00044097,30]
[343234157,1732513848048,-592.01396533,0.00044097,30]
[343234158,1732513848057,-268.688811,0.00044097,14]
[343234159,1732513848067,-452.607293,0.00044097,30]
[343234160,1732513848076,-500.0,0.00044097,30]
[343234161,1732513848085,-5018.48,0.00044097,30]
[343234162,1732513848095,-692.61,0.00044097,30]
[343234163,1732513848105,-500.0,0.00044097,30]
[343234164,1732513848114,-2322.34,0.00044097,30]
[343234165,1732513848123,-549.09,0.00044097,30]
[343234166,1732513848132,-157.705671,0.00044097,14]
[343234167,1732513848141,-5390.75,0.00044097,30]
[343234168,1732513848150,-6837.71,0.00044097,30]
[343234169,1732513848159,-500.0,0.00044097,30]
[343234170,1732513848169,-500.0,0.00044097,30]
[343234171,1732513848178,-1820.88,0.00044097,30]
[343234172,1732513848187,-5355.04,0.00044097,30]
[343234173,1732513848196,-152.49142,0.00044097,14]
[343234174,1732513848205,-500.0,0.00044097,30]
[343234175,1732513848214,-500.0,0.00044097,30]
[343234176,1732513848225,-233.98471745,0.00044097,30]
[343234177,1732513848234,-668.47,0.00044097,30]
[343234178,1732513848244,-500.0,0.00044097,30]
[343234179,1732513848252,-4616.14,0.00044097,30]
[343234180,1732513848262,-17669.42,0.00044097,30]
[343234181,1732513848271,-500.0,0.00044097,30]
[343234182,1732513848280,-151.0,0.00044097,14]
[343234183,1732513848290,-997.04,0.00044097,30]
[343234184,1732513848299,-151.0,0.00044097,14]
[343234185,1732513848511,-772.26,0.00044097,30]
[343234186,1732513848521,-500.0,0.00044097,30]
[343234187,1732513848531,-1751.24,0.00044097,30]
[343234188,1732513848541,-151.0,0.00044097,14]
[343234189,1732513848551,-151.0,0.00044097,14]
[343234190,1732513848560,-500.0,0.00044097,30]
[343234191,1732513848570,-500.0,0.00044097,30]
[343234192,1732513848579,-514.81750583,0.00044097,30]
[343234193,1732513848588,-500.0,0.00044097,30]
[343234194,1732513848598,-500.0,0.00044097,30]
[343234195,1732513848607,-500.0,0.00044097,30]
[343234196,1732513848617,-151.0,0.00044097,14]
[343234197,1732513848626,-151.0,0.00044097,14]
[343234198,1732513848636,-5707.6,0.00044097,30]
[343234199,1732513848646,-151.0,0.00044097,14]
[343234200,1732513848656,-151.0,0.00044097,14]
[343234201,1732513848666,-151.0,0.00044097,14]
[343234202,1732513848675,-151.0,0.00044097,14]
[343234203,1732513848686,-500.0,0.00044097,30]
[343234204,1732513848696,-1624.46,0.00044097,30]
[343234205,1732513848705,-500.0,0.00044097,30]
[343234206,1732513848715,-500.0,0.00044097,30]
[343234207,1732513848726,-500.0,0.00044097,30]
[343234208,1732513848736,-506.8347786,0.00044097,30]
[343234209,1732513848746,-954.25,0.00044097,30]
[343234210,1732513848756,-110000.0,0.00044098,2]
[343234211,1732513848766,-238.205014,0.00044098,14]
[343234212,1732513848776,-238.205014,0.00044098,14]
[343234213,1732513848786,-238.205014,0.00044098,14]
[343234214,1732513848796,-238.205014,0.00044098,14]
[343234215,1732513848806,-238.205014,0.00044098,14]
[343234216,1732513848816,-238.205014,0.00044098,14]
[343234217,1732513848825,-151.0,0.00044098,14]
[343234218,1732513848835,-238.205014,0.00044099,14]
[343234219,1732513848844,-238.205014,0.00044099,14]
[343234220,1732513848854,-196.81106866,0.00044099,120]
[343234221,1732513848864,-607.74,0.00044198,120]
[343234222,1732513848874,-238.205014,0.00044199,14]
[343234223,1732513848884,-238.205023,0.00044199,14]
[343234224,1732513848894,-10000.0,0.00044298,12]
[343234225,1732513848904,-242.01345863,0.00044299,30]
[343234226,1732513848914,-160.92,0.00044301,2]
[343234227,1732513848923,-160.92,0.00044323,2]
[343234228,1732513848932,-160.92,0.00044345,2]
[343234229,1732513848942,-500.0,0.00044369,30]
[343234230,1732513848951,-500.0,0.00044369,30]
[343234231,1732513848960,-500.0,0.0004437,30]
[343234232,1732513848970,-605.29533646,0.0004437,30]
[343234233,1732513848982,-500.0,0.0004437,30]
[343234234,1732513848991,-500.0,0.0004437,30]
[343234235,1732513849001,-1157.3,0.0004437,30]
[343234236,1732513849010,-500.0,0.0004437,30]
[343234237,1732513849020,-500.0,0.0004437,21]
[343234238,1732513849029,-500.0,0.0004437,30]
[343234239,1732513849038,-500.0,0.0004437,30]
[343234240,1732513849047,-3538.2,0.0004437,30]
[343234241,1732513849056,-9666.9,0.0004437,30]
[343234242,1732513849066,-4240.81,0.0004437,30]
[343234243,1732513849075,-9226.32,0.0004437,30]
[343234244,1732513849085,-2089.94,0.0004437,120]
[343234245,1732513849094,-500.0,0.0004437,30]
[343234246,1732513849103,-4548.13,0.0004437,30]
[343234247,1732513849112,-629.84,0.0004437,30]
[343234248,1732513849122,-702.98,0.0004437,30]
[343234249,1732513849131,-500.0,0.0004437,30]
[343234250,1732513849141,-693.44,0.0004437,30]
[343234251,1732513849150,-4727.77,0.0004437,30]
[343234252,1732513849159,-5289.89,0.0004437,30]
[343234253,1732513849169,-500.0,0.0004437,30]
[343234254,1732513849178,-334.26128722,0.0004437,30]
[343234255,1732513849187,-500.0,0.0004437,30]